{"text_format":"3","workbook":"xlsx","n_sheets":5,"sheets":["Tabuľa (dashboard)","Výdavky a príjmy","Zostava rozpočtu","Zoznamy údajov","Kontingenčná tabuľka kategórií"],"not_rendered":{"charts":3,"defined_names":18,"pivot_tables":2},"read":"whole","date_system":"1900"}

{"sheet":"Tabuľa (dashboard)","index":0,"n_rows":21,"n_cols":16,"rows_kept":21,"merged":[[5,2,5,3]]}
[]
[null,null,"Polmesačný domáci rozpočet",{"$nulls":12},"TABUĽA (DASHBOARD)"]
[]
[]
[]
[null,null,{"$f":"CHOOSE(ČísloMesiaca,\"Január\",\"Február\",\"Marec\",\"Apríl\",\"Máj\",\"Jún\",\"Júl\",\"August\",\"September\",\"Október\",\"November\",\"December\")","v":"August"},null,8,{"$nulls":5},2012]
[]
[]
[null,null,"MESAČNE CELKOM","Monthly Totals",{"$nulls":5},"ROČNE CELKOM",null,"Annual Totals"]
[null,null,"PRÍJMY","Výdavky",{"$f":"SUMIF(Výdavky[DÁTUM],\"<=\"&DátumNaKonciMesiaca,Výdavky[ČIASTKA])-SUMIF(Výdavky[DÁTUM],\"<\"&DátumNaZačiatkuMesiaca,Výdavky[ČIASTKA])","v":{"v":0,"d":"0 €"}},{"$nulls":4},"PRÍJMY",null,"Výdavky",{"$f":"SUM(IF(YEAR(Výdavky[DÁTUM])=K6,Výdavky[ČIASTKA]))","v":{"v":7500,"d":"7,500 €"}}]
[null,null,"VÝDAVKY","príjem",{"$f":"SUMIF(príjem[DÁTUM],\"<=\"&DátumNaKonciMesiaca,príjem[ČIASTKA])-SUMIF(príjem[DÁTUM],\"<\"&DátumNaZačiatkuMesiaca,príjem[ČIASTKA])","v":{"v":0,"d":"0 €"}},{"$nulls":4},"VÝDAVKY",null,"príjem",{"$f":"SUM(IF(YEAR(príjem[DÁTUM])=K6,príjem[ČIASTKA]))","v":{"v":12700,"d":"12,700 €"}}]
[]
[]
[]
[]
[]
[{"$nulls":3},"JANUÁR","FEBRUÁR","MAREC","APRÍL","MÁJ","JÚN","JÚL","AUGUST","SEPTEMBER","OKTÓBER","NOVEMBER","DECEMBER"]
[null,null,"Príjmy 1 – 15",{"$f":"SUMIFS(príjem[ČIASTKA],príjem[POPIS],\"<=\"&DtPočas,príjem[POPIS],\">=\"&DtZačiatok)","v":{"v":0,"d":"0.00 €"}},{"$f":"SUMIFS(príjem[ČIASTKA],príjem[POPIS],\"<=\"&DtPočas,príjem[POPIS],\">=\"&DtZačiatok)","v":{"v":0,"d":"0.00 €"}},{"$f":"SUMIFS(príjem[ČIASTKA],príjem[POPIS],\"<=\"&DtPočas,príjem[POPIS],\">=\"&DtZačiatok)","v":{"v":0,"d":"0.00 €"}},{"$f":"SUMIFS(príjem[ČIASTKA],príjem[POPIS],\"<=\"&DtPočas,príjem[POPIS],\">=\"&DtZačiatok)","v":{"v":0,"d":"0.00 €"}},{"$f":"SUMIFS(príjem[ČIASTKA],príjem[POPIS],\"<=\"&DtPočas,príjem[POPIS],\">=\"&DtZačiatok)","v":{"v":0,"d":"0.00 €"}},{"$f":"SUMIFS(príjem[ČIASTKA],príjem[POPIS],\"<=\"&DtPočas,príjem[POPIS],\">=\"&DtZačiatok)","v":{"v":0,"d":"0.00 €"}},{"$f":"SUMIFS(príjem[ČIASTKA],príjem[POPIS],\"<=\"&DtPočas,príjem[POPIS],\">=\"&DtZačiatok)","v":{"v":0,"d":"0.00 €"}},{"$f":"SUMIFS(príjem[ČIASTKA],príjem[POPIS],\"<=\"&DtPočas,príjem[POPIS],\">=\"&DtZačiatok)","v":{"v":0,"d":"0.00 €"}},{"$f":"SUMIFS(príjem[ČIASTKA],príjem[POPIS],\"<=\"&DtPočas,príjem[POPIS],\">=\"&DtZačiatok)","v":{"v":0,"d":"0.00 €"}},{"$f":"SUMIFS(príjem[ČIASTKA],príjem[POPIS],\"<=\"&DtPočas,príjem[POPIS],\">=\"&DtZačiatok)","v":{"v":0,"d":"0.00 €"}},{"$f":"SUMIFS(príjem[ČIASTKA],príjem[POPIS],\"<=\"&DtPočas,príjem[POPIS],\">=\"&DtZačiatok)","v":{"v":0,"d":"0.00 €"}},{"$f":"SUMIFS(príjem[ČIASTKA],príjem[POPIS],\"<=\"&DtPočas,príjem[POPIS],\">=\"&DtZačiatok)","v":{"v":0,"d":"0.00 €"}}]
[null,null,"Príjem 16 – na konci mesiaca",{"$f":"SUMIFS(príjem[ČIASTKA],príjem[POPIS],\"<=\"&DtKoniec,príjem[POPIS],\">=\"&DtPočas+1)","v":{"v":0,"d":"0.00 €"}},{"$f":"SUMIFS(príjem[ČIASTKA],príjem[POPIS],\"<=\"&DtKoniec,príjem[POPIS],\">=\"&DtPočas+1)","v":{"v":0,"d":"0.00 €"}},{"$f":"SUMIFS(príjem[ČIASTKA],príjem[POPIS],\"<=\"&DtKoniec,príjem[POPIS],\">=\"&DtPočas+1)","v":{"v":0,"d":"0.00 €"}},{"$f":"SUMIFS(príjem[ČIASTKA],príjem[POPIS],\"<=\"&DtKoniec,príjem[POPIS],\">=\"&DtPočas+1)","v":{"v":0,"d":"0.00 €"}},{"$f":"SUMIFS(príjem[ČIASTKA],príjem[POPIS],\"<=\"&DtKoniec,príjem[POPIS],\">=\"&DtPočas+1)","v":{"v":0,"d":"0.00 €"}},{"$f":"SUMIFS(príjem[ČIASTKA],príjem[POPIS],\"<=\"&DtKoniec,príjem[POPIS],\">=\"&DtPočas+1)","v":{"v":0,"d":"0.00 €"}},{"$f":"SUMIFS(príjem[ČIASTKA],príjem[POPIS],\"<=\"&DtKoniec,príjem[POPIS],\">=\"&DtPočas+1)","v":{"v":0,"d":"0.00 €"}},{"$f":"SUMIFS(príjem[ČIASTKA],príjem[POPIS],\"<=\"&DtKoniec,príjem[POPIS],\">=\"&DtPočas+1)","v":{"v":0,"d":"0.00 €"}},{"$f":"SUMIFS(príjem[ČIASTKA],príjem[POPIS],\"<=\"&DtKoniec,príjem[POPIS],\">=\"&DtPočas+1)","v":{"v":0,"d":"0.00 €"}},{"$f":"SUMIFS(príjem[ČIASTKA],príjem[POPIS],\"<=\"&DtKoniec,príjem[POPIS],\">=\"&DtPočas+1)","v":{"v":0,"d":"0.00 €"}},{"$f":"SUMIFS(príjem[ČIASTKA],príjem[POPIS],\"<=\"&DtKoniec,príjem[POPIS],\">=\"&DtPočas+1)","v":{"v":0,"d":"0.00 €"}},{"$f":"SUMIFS(príjem[ČIASTKA],príjem[POPIS],\"<=\"&DtKoniec,príjem[POPIS],\">=\"&DtPočas+1)","v":{"v":0,"d":"0.00 €"}}]
[null,null,"Výdavky 1 – 15",{"$f":"SUMIFS(Výdavky[ČIASTKA],Výdavky[DÁTUM],\"<=\"&DtPočas,Výdavky[DÁTUM],\">=\"&DtZačiatok)","v":{"v":0,"d":"0.00 €"}},{"$f":"SUMIFS(Výdavky[ČIASTKA],Výdavky[DÁTUM],\"<=\"&DtKoniec,Výdavky[DÁTUM],\">=\"&DtZačiatok)","v":{"v":0,"d":"0.00 €"}},{"$f":"SUMIFS(Výdavky[ČIASTKA],Výdavky[DÁTUM],\"<=\"&DtKoniec,Výdavky[DÁTUM],\">=\"&DtZačiatok)","v":{"v":0,"d":"0.00 €"}},{"$f":"SUMIFS(Výdavky[ČIASTKA],Výdavky[DÁTUM],\"<=\"&DtKoniec,Výdavky[DÁTUM],\">=\"&DtZačiatok)","v":{"v":0,"d":"0.00 €"}},{"$f":"SUMIFS(Výdavky[ČIASTKA],Výdavky[DÁTUM],\"<=\"&DtKoniec,Výdavky[DÁTUM],\">=\"&DtZačiatok)","v":{"v":0,"d":"0.00 €"}},{"$f":"SUMIFS(Výdavky[ČIASTKA],Výdavky[DÁTUM],\"<=\"&DtKoniec,Výdavky[DÁTUM],\">=\"&DtZačiatok)","v":{"v":0,"d":"0.00 €"}},{"$f":"SUMIFS(Výdavky[ČIASTKA],Výdavky[DÁTUM],\"<=\"&DtKoniec,Výdavky[DÁTUM],\">=\"&DtZačiatok)","v":{"v":0,"d":"0.00 €"}},{"$f":"SUMIFS(Výdavky[ČIASTKA],Výdavky[DÁTUM],\"<=\"&DtKoniec,Výdavky[DÁTUM],\">=\"&DtZačiatok)","v":{"v":0,"d":"0.00 €"}},{"$f":"SUMIFS(Výdavky[ČIASTKA],Výdavky[DÁTUM],\"<=\"&DtKoniec,Výdavky[DÁTUM],\">=\"&DtZačiatok)","v":{"v":75,"d":"75.00 €"}},{"$f":"SUMIFS(Výdavky[ČIASTKA],Výdavky[DÁTUM],\"<=\"&DtKoniec,Výdavky[DÁTUM],\">=\"&DtZačiatok)","v":{"v":1350,"d":"1,350.00 €"}},{"$f":"SUMIFS(Výdavky[ČIASTKA],Výdavky[DÁTUM],\"<=\"&DtKoniec,Výdavky[DÁTUM],\">=\"&DtZačiatok)","v":{"v":6025,"d":"6,025.00 €"}},{"$f":"SUMIFS(Výdavky[ČIASTKA],Výdavky[DÁTUM],\"<=\"&DtKoniec,Výdavky[DÁTUM],\">=\"&DtZačiatok)","v":{"v":2742,"d":"2,742.00 €"}}]
[null,null,"Výdavok 16 – na konci mesiaca",{"$f":"SUMIFS(Výdavky[ČIASTKA],Výdavky[DÁTUM],\"<=\"&DtKoniec,Výdavky[DÁTUM],\">=\"&DtPočas+1)","v":{"v":0,"d":"0.00 €"}},{"$f":"SUMIFS(Výdavky[ČIASTKA],Výdavky[DÁTUM],\"<=\"&DtKoniec,Výdavky[DÁTUM],\">=\"&DtPočas+1)","v":{"v":0,"d":"0.00 €"}},{"$f":"SUMIFS(Výdavky[ČIASTKA],Výdavky[DÁTUM],\"<=\"&DtKoniec,Výdavky[DÁTUM],\">=\"&DtPočas+1)","v":{"v":0,"d":"0.00 €"}},{"$f":"SUMIFS(Výdavky[ČIASTKA],Výdavky[DÁTUM],\"<=\"&DtKoniec,Výdavky[DÁTUM],\">=\"&DtPočas+1)","v":{"v":0,"d":"0.00 €"}},{"$f":"SUMIFS(Výdavky[ČIASTKA],Výdavky[DÁTUM],\"<=\"&DtKoniec,Výdavky[DÁTUM],\">=\"&DtPočas+1)","v":{"v":0,"d":"0.00 €"}},{"$f":"SUMIFS(Výdavky[ČIASTKA],Výdavky[DÁTUM],\"<=\"&DtKoniec,Výdavky[DÁTUM],\">=\"&DtPočas+1)","v":{"v":0,"d":"0.00 €"}},{"$f":"SUMIFS(Výdavky[ČIASTKA],Výdavky[DÁTUM],\"<=\"&DtKoniec,Výdavky[DÁTUM],\">=\"&DtPočas+1)","v":{"v":0,"d":"0.00 €"}},{"$f":"SUMIFS(Výdavky[ČIASTKA],Výdavky[DÁTUM],\"<=\"&DtKoniec,Výdavky[DÁTUM],\">=\"&DtPočas+1)","v":{"v":0,"d":"0.00 €"}},{"$f":"SUMIFS(Výdavky[ČIASTKA],Výdavky[DÁTUM],\"<=\"&DtKoniec,Výdavky[DÁTUM],\">=\"&DtPočas+1)","v":{"v":75,"d":"75.00 €"}},{"$f":"SUMIFS(Výdavky[ČIASTKA],Výdavky[DÁTUM],\"<=\"&DtKoniec,Výdavky[DÁTUM],\">=\"&DtPočas+1)","v":{"v":200,"d":"200.00 €"}},{"$f":"SUMIFS(Výdavky[ČIASTKA],Výdavky[DÁTUM],\"<=\"&DtKoniec,Výdavky[DÁTUM],\">=\"&DtPočas+1)","v":{"v":875,"d":"875.00 €"}},{"$f":"SUMIFS(Výdavky[ČIASTKA],Výdavky[DÁTUM],\"<=\"&DtKoniec,Výdavky[DÁTUM],\">=\"&DtPočas+1)","v":{"v":0,"d":"0.00 €"}}]

{"sheet":"Výdavky a príjmy","index":1,"n_rows":40,"n_cols":10,"rows_kept":40}
[]
[null,null,"Polmesačný domáci rozpočet",{"$nulls":6},"PRÍJMY A VÝDAVKY"]
[]
[]
[]
[null,null,"PRÍJMY",{"$nulls":3},"VÝDAVKY"]
[]
[null,null,"DÁTUM","POPIS","ČIASTKA",null,"DÁTUM","KATEGÓRIA","POPIS","ČIASTKA"]
[null,null,{"$f":"NOW()-14","v":"2013-01-02T14:37:01.590"},"Michalova výplata",{"v":1300,"d":"1,300.00 €"},null,{"$f":"NOW()-7","v":"2013-01-09T14:37:01.590"},"Domácnosť","Hypotéka",{"v":1000,"d":"1,000.00 €"}]
[null,null,{"$f":"NOW()-14","v":"2013-01-02T14:37:01.590"},"Patrikova výplata",{"v":1300,"d":"1,300.00 €"},null,{"$f":"NOW()-7","v":"2013-01-09T14:37:01.590"},"Domácnosť","Elektrina",{"v":100,"d":"100.00 €"}]
[null,null,{"$f":"NOW()-28","v":"2012-12-19T14:37:01.590"},"Michalova výplata",{"v":1500,"d":"1,500.00 €"},null,"2013-01-09T14:37:01.590","Domácnosť","Voda/kanalizácia",{"v":50,"d":"50.00 €"}]
[null,null,"2012-12-19T14:37:01.590","Patrikova výplata",{"v":1600,"d":"1,600.00 €"},null,"2013-01-09T14:37:01.590","Domácnosť","Odpad",{"v":25,"d":"25.00 €"}]
[null,null,{"$f":"NOW()-42","v":"2012-12-05T14:37:01.590"},"Michalova výplata",{"v":1300,"d":"1,300.00 €"},null,"2013-01-09T14:37:01.590","Domácnosť","Mobilný telefón",{"v":100,"d":"100.00 €"}]
[null,null,"2012-12-05T14:37:01.590","Patrikova výplata",{"v":1300,"d":"1,300.00 €"},null,"2013-01-09T14:37:01.590","Domácnosť","Pevná linka",{"v":30,"d":"30.00 €"}]
[null,null,{"$f":"NOW()-56","v":"2012-11-21T14:37:01.590"},"Michalova výplata",{"v":1500,"d":"1,500.00 €"},null,"2013-01-09T14:37:01.590","Domácnosť","Internet",{"v":50,"d":"50.00 €"}]
[null,null,"2012-11-21T14:37:01.590","Patrikova výplata",{"v":1600,"d":"1,600.00 €"},null,"2013-01-09T14:37:01.590","Domácnosť","Televízia",{"v":50,"d":"50.00 €"}]
[null,null,{"$f":"NOW()-70","v":"2012-11-07T14:37:01.590"},"Michalova výplata",{"v":1300,"d":"1,300.00 €"},null,"2013-01-09T14:37:01.590","Domácnosť","Údržba/opravy",{"v":25,"d":"25.00 €"}]
[{"$nulls":6},{"$f":"NOW()-8","v":"2013-01-08T14:37:01.590"},"Domácnosť","Kreditná karta 1",{"v":100,"d":"100.00 €"}]
[{"$nulls":6},{"$f":"NOW()-9","v":"2013-01-07T14:37:01.590"},"Zábava","Kino",{"v":37,"d":"37.00 €"}]
[{"$nulls":6},{"$f":"NOW()-10","v":"2013-01-06T14:37:01.590"},"Jedlo","Potraviny",{"v":350,"d":"350.00 €"}]
[{"$nulls":6},{"$f":"NOW()-11","v":"2013-01-05T14:37:01.590"},"Jedlo","Reštaurácie",{"v":75,"d":"75.00 €"}]
[{"$nulls":6},{"$f":"NOW()-12","v":"2013-01-04T14:37:01.590"},"Deti","Obedy",{"v":150,"d":"150.00 €"}]
[{"$nulls":6},{"$f":"NOW()-13","v":"2013-01-03T14:37:01.590"},"Investičné kontá","Úspory",{"v":250,"d":"250.00 €"}]
[{"$nulls":6},{"$f":"NOW()-14","v":"2013-01-02T14:37:01.590"},"Investičné kontá","Investičné konto",{"v":250,"d":"250.00 €"}]
[{"$nulls":6},{"$f":"NOW()-15","v":"2013-01-01T14:37:01.590"},"Osobné","Zdravie/fitness",{"v":100,"d":"100.00 €"}]
[{"$nulls":6},{"$f":"NOW()-16","v":"2012-12-31T14:37:01.590"},"Domáce zvieratá","Jedlo",{"v":50,"d":"50.00 €"}]
[{"$nulls":6},{"$f":"NOW()-20","v":"2012-12-27T14:37:01.590"},"Domáce zvieratá","Ošetrovanie",{"v":50,"d":"50.00 €"}]
[{"$nulls":6},{"$f":"NOW()-20","v":"2012-12-27T14:37:01.590"},"Domáce zvieratá","Iné",{"v":50,"d":"50.00 €"}]
[{"$nulls":6},{"$f":"NOW()-25","v":"2012-12-22T14:37:01.590"},"Preprava","Splátka za auto 1",{"v":300,"d":"300.00 €"}]
[{"$nulls":6},{"$f":"NOW()-25","v":"2012-12-22T14:37:01.590"},"Preprava","Splátka za auto 2",{"v":350,"d":"350.00 €"}]
[{"$nulls":6},{"$f":"NOW()-25","v":"2012-12-22T14:37:01.590"},"Preprava","Poistenie auta",{"v":50,"d":"50.00 €"}]
[{"$nulls":6},{"$f":"NOW()-30","v":"2012-12-17T14:37:01.590"},"Preprava","Palivo",{"v":50,"d":"50.00 €"}]
[{"$nulls":6},{"$f":"NOW()-31","v":"2012-12-16T14:37:01.590"},"Preprava","Palivo",{"v":25,"d":"25.00 €"}]
[{"$nulls":6},{"$f":"NOW()-42","v":"2012-12-05T14:37:01.590"},"Preprava","Údržba/opravy",{"v":150,"d":"150.00 €"}]
[{"$nulls":6},{"$f":"NOW()-45","v":"2012-12-02T14:37:01.590"},"Domácnosť","Hypotéka",{"v":5000,"d":"5,000.00 €"}]
[{"$nulls":6},{"$f":"NOW()-50","v":"2012-11-27T14:37:01.590"},"Domácnosť","Zásoby",{"v":200,"d":"200.00 €"}]
[{"$nulls":6},{"$f":"NOW()-65","v":"2012-11-12T14:37:01.590"},"Domácnosť","Pevná linka",{"v":100,"d":"100.00 €"}]
[{"$nulls":6},{"$f":"NOW()-70","v":"2012-11-07T14:37:01.590"},"Domácnosť","Odpad",{"v":50,"d":"50.00 €"}]
[{"$nulls":6},{"$f":"NOW()-75","v":"2012-11-02T14:37:01.590"},"Domácnosť","Hypotéka",{"v":1000,"d":"1,000.00 €"}]
[{"$nulls":6},{"$f":"NOW()-78","v":"2012-10-30T14:37:01.590"},"Zábava","Kino",{"v":75,"d":"75.00 €"}]

{"sheet":"Zostava rozpočtu","index":2,"n_rows":41,"n_cols":8,"rows_kept":41}
[]
[null,null,"Polmesačný domáci rozpočet",{"$nulls":4},"ZOSTAVA ROZPOČTU"]
{"$rows_empty":10}
[null,null,"VÝDAVKY",null,null,"SÚČTY KATEGÓRIÍ"]
[]
[null,null,"POPIS","CELKOVO"]
[null,null,"Elektrina",100]
[null,null,"Hypotéka",7000]
[null,null,"Iné",50]
[null,null,"Internet",50]
[null,null,"Investičné konto",250]
[null,null,"Jedlo",50]
[null,null,"Kino",112]
[null,null,"Kreditná karta 1",100]
[null,null,"Mobilný telefón",100]
[null,null,"Obedy",150]
[null,null,"Odpad",75]
[null,null,"Ošetrovanie",50]
[null,null,"Palivo",75]
[null,null,"Pevná linka",130]
[null,null,"Poistenie auta",50]
[null,null,"Potraviny",350]
[null,null,"Reštaurácie",75]
[null,null,"Splátka za auto 1",300]
[null,null,"Splátka za auto 2",350]
[null,null,"Televízia",50]
[null,null,"Údržba/opravy",175]
[null,null,"Úspory",250]
[null,null,"Voda/kanalizácia",50]
[null,null,"Zásoby",200]
[null,null,"Zdravie/fitness",100]
[null,null,"CELKOM",10242]

{"sheet":"Zoznamy údajov","index":3,"n_rows":20,"n_cols":14,"rows_kept":20}
[]
[null,null,"Polmesačný domáci rozpočet",{"$nulls":10},"ZOZNAMY ÚDAJOV"]
[]
[]
[null,null,"NASTAVENIE         Údaje z nižšie uvedených kategórií sa nachádzajú v rozbaľovacích zoznamoch v tabuľke Výdavky v hárku Výdavky a príjmy. Ak chcete zoznamy aktualizovať, upravte názvy kategórií alebo popisy pod jednotlivými kategóriami."]
[]
[null,null,"Domácnosť","Zábava","Jedlo","Dary/sponzorské príspevky","Deti","Investičné kontá","Zdravotná starostlivosť","Iné","Osobné","Domáce zvieratá","Dane/právne poplatky","Preprava"]
[null,null,"Hypotéka","Kino","Potraviny","Charita 1","Oblečenie","Osobný dôchodkový účet","Lekár/nemocnica","Iné","Oblečenie","Jedlo","Federálne","Splátka za auto 1"]
[null,null,"Elektrina","Video/kino","Reštaurácie","Charita 2","Hračky/hry","Úspory","Poistenie","Organizačné poplatky","Kaderník a manikúra","Zásoby","Štátne","Splátka za auto 2"]
[null,null,"Voda/kanalizácia","Hudba",null,"Charita 3","Obedy","Bežný účet",null,null,"Čistiareň","Zdravotná starostlivosť","Lokálne","Poistenie auta"]
[null,null,"Odpad","Koncerty/divadlo",null,"Dar","Platby/poplatky","Dôchodok",null,null,"Zdravie/fitness","Ošetrovanie","Iné","Licencie/registrácie"]
[null,null,"Mobilný telefón","Športové podujatia",null,null,"Školské potreby","Investičné konto",null,null,"Nakupovanie","Iné","Advokát","Palivo"]
[null,null,"Pevná linka","Iné",null,null,"Iné","Vysoká škola",null,null,"Iné",null,"Detské prídavky","Údržba/opravy"]
[null,null,"Internet",{"$nulls":3},"Práčovňa","Pôžičky",{"$nulls":4},"Alimenty","Verejná doprava"]
[null,null,"Televízia",{"$nulls":4},"Študentské pôžičky",{"$nulls":4},"Iné"]
[null,null,"Údržba/opravy"]
[null,null,"Zásoby"]
[null,null,"Káblová televízia/internet/telefón"]
[null,null,"Kreditná karta 1"]
[null,null,"Kreditná karta 2"]

{"sheet":"Kontingenčná tabuľka kategórií","index":4,"n_rows":16,"n_cols":14,"rows_kept":16,"hidden":true}
[]
[null,null,"Polmesačný domáci rozpočet",{"$nulls":10},"KONTINGENČNÁ TABUĽKA KATEGÓRIÍ"]
[]
[]
[null,"Táto KontingenčnáTabuľka je zdrojom údajov pre kontingenčný graf Súčty kategórií v zostave Rozpočet. "]
[]
[null,null,"Menovky riadkov","Súčet z ČIASTKA"]
[null,null,"Deti",{"v":150,"d":"150 €"}]
[null,null,"Domáce zvieratá",{"v":150,"d":"150 €"}]
[null,null,"Domácnosť",{"v":7880,"d":"7,880 €"}]
[null,null,"Investičné kontá",{"v":500,"d":"500 €"}]
[null,null,"Jedlo",{"v":425,"d":"425 €"}]
[null,null,"Osobné",{"v":100,"d":"100 €"}]
[null,null,"Preprava",{"v":925,"d":"925 €"}]
[null,null,"Zábava",{"v":112,"d":"112 €"}]
[null,null,"Celkový súčet",{"v":10242,"d":"10,242 €"}]